[Event "Titled Tuesday Blitz June 20 Early 2023"]
[White "luachess1"]
[Black "Georg, Heinz"]
[BlackFideId "4607295"]
[WhiteElo "1706"]
[BlackElo "2263"]
[Result "0-1"]
[Round "10"]
[TimeControl "180+2"]
[Date "2023.06.20"]
[WhiteClock "0:00:09"]
[BlackClock "0:01:04"]
[Board "144"]

1. d4 {[%clk 0:03:00]}  f5 {[%clk 0:02:58]} 2. Bg5 {[%clk 0:02:59]}  h6 {[%clk 0:02:57]} 3. Bf4 {[%clk 0:02:52]}  Nf6 {[%clk 0:02:56]} 4. h3 {[%clk 0:02:44]}  d6 {[%clk 0:02:54]} 5. c4 {[%clk 0:02:43]}  g5 {[%clk 0:02:53]} 6. Bh2 {[%clk 0:02:39]}  Bg7 {[%clk 0:02:53]} 7. e3 {[%clk 0:02:37]}  O-O {[%clk 0:02:49]} 8. Nc3 {[%clk 0:02:37]}  Nc6 {[%clk 0:02:48]} 9. Bd3 {[%clk 0:02:33]}  e5 {[%clk 0:02:47]} 10. dxe5 {[%clk 0:02:16]}  dxe5 {[%clk 0:02:45]} 11. Nge2 {[%clk 0:01:42]}  Be6 {[%clk 0:02:42]} 12. O-O {[%clk 0:01:28]}  a6 {[%clk 0:02:31]} 13. a3 {[%clk 0:01:23]}  Rf7 {[%clk 0:02:28]} 14. b4 {[%clk 0:01:21]}  e4 {[%clk 0:02:27]} 15. Bc2 {[%clk 0:01:19]}  Bxc4 {[%clk 0:02:25]} 16. Re1 {[%clk 0:01:15]}  Nd5 {[%clk 0:02:16]} 17. Nxd5 {[%clk 0:00:42]}  Bxa1 {[%clk 0:02:10]} 18. Bb3 {[%clk 0:00:42]}  Bxb3 {[%clk 0:02:03]} 19. Qxb3 {[%clk 0:00:43]}  Bg7 {[%clk 0:02:01]} 20. Nxc7 {[%clk 0:00:42]}  Rc8 {[%clk 0:01:56]} 21. Ne6 {[%clk 0:00:37]}  Qf6 {[%clk 0:01:51]} 22. Nc5 {[%clk 0:00:34]}  Kh7 {[%clk 0:01:46]} 23. Rd1 {[%clk 0:00:24]}  Ne5 {[%clk 0:01:41]} 24. Nd4 {[%clk 0:00:18]}  Nc6 {[%clk 0:01:34]} 25. Nxc6 {[%clk 0:00:15]}  Rxc6 {[%clk 0:01:31]} 26. Qd5 {[%clk 0:00:15]}  Bf8 {[%clk 0:01:20]} 27. a4 {[%clk 0:00:13]}  Bxc5 {[%clk 0:01:19]} 28. bxc5 {[%clk 0:00:14]}  Qe6 {[%clk 0:01:17]} 29. Bd6 {[%clk 0:00:13]}  Qxd5 {[%clk 0:01:16]} 30. Rxd5 {[%clk 0:00:14]}  Kg6 {[%clk 0:01:15]} 31. Re5 {[%clk 0:00:14]}  Kf6 {[%clk 0:01:11]} 32. Re8 {[%clk 0:00:14]}  b6 {[%clk 0:01:09]} 33. Ra8 {[%clk 0:00:13]}  bxc5 {[%clk 0:01:08]} 34. Bf8 {[%clk 0:00:12]}  c4 {[%clk 0:01:05]} 35. Bxh6 {[%clk 0:00:09]}  c3 {[%clk 0:01:04]} 36. Rb8 {[%clk 0:00:09]}  c2 {[%clk 0:01:04]} 0-1


[Site "https://www.chess.com"]

[Event "Titled Tuesday Blitz June 20 Early 2023"]
[White "Francisco_Ferrari"]
[Black "Floresvillar Gonzalez, Luis Migu"]
[BlackFideId "5100542"]
[WhiteElo "2258"]
[BlackElo "2040"]
[Result "1-0"]
[Round "10"]
[TimeControl "180+2"]
[Date "2023.06.20"]
[WhiteClock "0:00:18"]
[BlackClock "0:00:00"]
[Board "146"]

1. e4 {[%clk 0:02:51]}  c5 {[%clk 0:02:59]} 2. Nf3 {[%clk 0:02:50]}  d6 {[%clk 0:02:59]} 3. Bb5+ {[%clk 0:02:50]}  Nc6 {[%clk 0:02:54]} 4. d4 {[%clk 0:02:43]}  cxd4 {[%clk 0:02:53]} 5. Qxd4 {[%clk 0:02:43]}  Bd7 {[%clk 0:02:52]} 6. Bxc6 {[%clk 0:02:42]}  bxc6 {[%clk 0:02:52]} 7. Nc3 {[%clk 0:02:43]}  e5 {[%clk 0:02:46]} 8. Qd2 {[%clk 0:02:39]}  Be7 {[%clk 0:02:45]} 9. O-O {[%clk 0:02:35]}  Nf6 {[%clk 0:02:45]} 10. b3 {[%clk 0:02:31]}  O-O {[%clk 0:02:44]} 11. Ba3 {[%clk 0:02:30]}  Qc7 {[%clk 0:02:41]} 12. Rad1 {[%clk 0:02:26]}  Qa5 {[%clk 0:01:48]} 13. Na4 {[%clk 0:01:51]}  Qxd2 {[%clk 0:01:40]} 14. Nxd2 {[%clk 0:01:51]}  Rfe8 {[%clk 0:00:54]} 15. f3 {[%clk 0:01:43]}  d5 {[%clk 0:00:52]} 16. Bxe7 {[%clk 0:01:38]}  Rxe7 {[%clk 0:00:51]} 17. Nc5 {[%clk 0:01:37]}  Be8 {[%clk 0:00:46]} 18. Rfe1 {[%clk 0:01:34]}  d4 {[%clk 0:00:41]} 19. Nc4 {[%clk 0:01:33]}  Nd7 {[%clk 0:00:40]} 20. Nxd7 {[%clk 0:01:23]}  Bxd7 {[%clk 0:00:39]} 21. b4 {[%clk 0:01:11]}  f6 {[%clk 0:00:34]} 22. c3 {[%clk 0:01:07]}  dxc3 {[%clk 0:00:25]} 23. Rd3 {[%clk 0:01:07]}  c2 {[%clk 0:00:21]} 24. Rc1 {[%clk 0:01:07]}  Be6 {[%clk 0:00:19]} 25. Rxc2 {[%clk 0:01:07]}  Rb8 {[%clk 0:00:16]} 26. a3 {[%clk 0:01:05]}  Bxc4 {[%clk 0:00:13]} 27. Rxc4 {[%clk 0:01:05]}  a5 {[%clk 0:00:13]} 28. bxa5 {[%clk 0:01:02]}  Ra8 {[%clk 0:00:12]} 29. Rc5 {[%clk 0:00:53]}  Ra6 {[%clk 0:00:11]} 30. Rb3 {[%clk 0:00:52]}  Rea7 {[%clk 0:00:09]} 31. Kf2 {[%clk 0:00:32]}  Rxa5 {[%clk 0:00:08]} 32. Rxa5 {[%clk 0:00:29]}  Rxa5 {[%clk 0:00:07]} 33. Ke3 {[%clk 0:00:29]}  Kf7 {[%clk 0:00:06]} 34. Kd3 {[%clk 0:00:29]}  Ke6 {[%clk 0:00:05]} 35. Kc4 {[%clk 0:00:29]}  Kd6 {[%clk 0:00:05]} 36. Rd3+ {[%clk 0:00:18]}  Kc7 {[%clk 0:00:00]} 37. g4 {[%clk 0:00:18]} 1-0


[Site "https://www.chess.com"]

[Event "Titled Tuesday Blitz June 20 Early 2023"]
[White "Clawitter, Craig"]
[Black "Baruch, Liam"]
[WhiteFideId "2023105"]
[BlackFideId "14322064"]
[WhiteElo "2236"]
[BlackElo "2124"]
[Result "0-1"]
[Round "10"]
[TimeControl "180+2"]
[Date "2023.06.20"]
[WhiteClock "0:00:00"]
[BlackClock "0:01:52"]
[Board "147"]

1. e4 {[%clk 0:03:00]}  e5 {[%clk 0:02:59]} 2. Nc3 {[%clk 0:03:00]}  Nc6 {[%clk 0:03:00]} 3. f4 {[%clk 0:03:00]}  Bc5 {[%clk 0:02:59]} 4. Nf3 {[%clk 0:03:00]}  d6 {[%clk 0:02:58]} 5. Bb5 {[%clk 0:03:00]}  Nf6 {[%clk 0:02:54]} 6. d3 {[%clk 0:02:46]}  O-O {[%clk 0:02:46]} 7. Na4 {[%clk 0:02:45]}  Bb6 {[%clk 0:02:36]} 8. Bxc6 {[%clk 0:02:34]}  bxc6 {[%clk 0:02:35]} 9. fxe5 {[%clk 0:02:26]}  dxe5 {[%clk 0:02:33]} 10. Nxb6 {[%clk 0:02:16]}  cxb6 {[%clk 0:02:24]} 11. Nxe5 {[%clk 0:02:16]}  Re8 {[%clk 0:02:15]} 12. Bf4 {[%clk 0:01:07]}  Re6 {[%clk 0:02:12]} 13. c3 {[%clk 0:00:48]}  Qe8 {[%clk 0:02:06]} 14. Nf3 {[%clk 0:00:05]}  Nxe4 {[%clk 0:02:06]} 15. O-O {[%clk 0:00:05]}  Nf6 {[%clk 0:02:03]} 16. Nd4 {[%clk 0:00:05]}  Re7 {[%clk 0:02:00]} 17. Qd2 {[%clk 0:00:03]}  c5 {[%clk 0:01:59]} 18. Nf3 {[%clk 0:00:03]}  Bb7 {[%clk 0:01:58]} 19. Rae1 {[%clk 0:00:02]}  Nd5 {[%clk 0:01:55]} 20. Rxe7 {[%clk 0:00:01]}  Qxe7 {[%clk 0:01:54]} 21. Re1 {[%clk 0:00:00]}  Qf6 {[%clk 0:01:52]} 0-1


[Site "https://www.chess.com"]

[Event "Titled Tuesday Blitz June 20 Early 2023"]
[White "Prydun, Andriy"]
[Black "Zallio, Luciano de Souza"]
[WhiteFideId "14145898"]
[BlackFideId "2109700"]
[WhiteElo "2164"]
[BlackElo "2057"]
[Result "1/2-1/2"]
[Round "10"]
[TimeControl "180+2"]
[Date "2023.06.20"]
[WhiteClock "0:00:16"]
[BlackClock "0:00:36"]
[Board "149"]

1. e4 {[%clk 0:03:00]}  e6 {[%clk 0:02:58]} 2. d3 {[%clk 0:03:00]}  d5 {[%clk 0:02:59]} 3. Nd2 {[%clk 0:03:00]}  Nf6 {[%clk 0:02:58]} 4. Ngf3 {[%clk 0:03:00]}  c5 {[%clk 0:02:57]} 5. g3 {[%clk 0:03:00]}  Be7 {[%clk 0:02:58]} 6. Bg2 {[%clk 0:03:00]}  O-O {[%clk 0:02:58]} 7. O-O {[%clk 0:03:01]}  b6 {[%clk 0:02:58]} 8. Re1 {[%clk 0:02:59]}  Bb7 {[%clk 0:02:58]} 9. c3 {[%clk 0:02:58]}  Nc6 {[%clk 0:02:53]} 10. Qe2 {[%clk 0:02:58]}  dxe4 {[%clk 0:02:52]} 11. Nxe4 {[%clk 0:02:57]}  Nxe4 {[%clk 0:02:52]} 12. dxe4 {[%clk 0:02:57]}  e5 {[%clk 0:02:50]} 13. h4 {[%clk 0:02:50]}  h6 {[%clk 0:02:50]} 14. Nh2 {[%clk 0:02:46]}  Qc7 {[%clk 0:02:38]} 15. Qh5 {[%clk 0:02:39]}  Bc8 {[%clk 0:02:26]} 16. Ng4 {[%clk 0:02:36]}  Bxg4 {[%clk 0:02:25]} 17. Qxg4 {[%clk 0:02:36]}  Kh8 {[%clk 0:02:22]} 18. Be3 {[%clk 0:02:33]}  Rad8 {[%clk 0:02:20]} 19. Rad1 {[%clk 0:02:32]}  Rxd1 {[%clk 0:02:19]} 20. Rxd1 {[%clk 0:02:32]}  Rd8 {[%clk 0:02:19]} 21. Rd5 {[%clk 0:02:32]}  Bf8 {[%clk 0:02:08]} 22. a3 {[%clk 0:02:10]}  g6 {[%clk 0:02:03]} 23. h5 {[%clk 0:02:06]}  g5 {[%clk 0:01:54]} 24. Bh3 {[%clk 0:01:55]}  Ne7 {[%clk 0:01:49]} 25. Rd1 {[%clk 0:01:50]}  Rd6 {[%clk 0:01:38]} 26. Qe2 {[%clk 0:01:42]}  Qd8 {[%clk 0:01:36]} 27. Bg4 {[%clk 0:01:42]}  Rxd1+ {[%clk 0:01:35]} 28. Qxd1 {[%clk 0:01:42]}  Qxd1+ {[%clk 0:01:35]} 29. Bxd1 {[%clk 0:01:41]}  Kg7 {[%clk 0:01:30]} 30. Ba4 {[%clk 0:01:41]}  Nc8 {[%clk 0:01:29]} 31. Bb5 {[%clk 0:01:26]}  Bd6 {[%clk 0:01:28]} 32. Bd3 {[%clk 0:01:27]}  Ne7 {[%clk 0:01:27]} 33. Bb5 {[%clk 0:01:22]}  f6 {[%clk 0:01:25]} 34. Kg2 {[%clk 0:01:19]}  Kf7 {[%clk 0:01:26]} 35. Kf3 {[%clk 0:01:17]}  Ke6 {[%clk 0:01:26]} 36. Kg4 {[%clk 0:01:17]}  Kf7 {[%clk 0:01:24]} 37. Bd7 {[%clk 0:01:10]}  Ng8 {[%clk 0:01:15]} 38. b4 {[%clk 0:01:08]}  cxb4 {[%clk 0:01:08]} 39. cxb4 {[%clk 0:01:08]}  Ne7 {[%clk 0:01:08]} 40. f3 {[%clk 0:01:02]}  Ng8 {[%clk 0:01:03]} 41. Bd2 {[%clk 0:00:58]}  Ne7 {[%clk 0:01:01]} 42. a4 {[%clk 0:00:57]}  Ng8 {[%clk 0:01:00]} 43. a5 {[%clk 0:00:57]}  bxa5 {[%clk 0:00:54]} 44. bxa5 {[%clk 0:00:14]}  Bc5 {[%clk 0:00:54]} 45. Bc6 {[%clk 0:00:10]}  Ne7 {[%clk 0:00:51]} 46. Bb7 {[%clk 0:00:10]}  Ke6 {[%clk 0:00:49]} 47. a6 {[%clk 0:00:10]}  Kd6 {[%clk 0:00:48]} 48. Ba5 {[%clk 0:00:11]}  Kd7 {[%clk 0:00:40]} 49. Bc3 {[%clk 0:00:10]}  Kc7 {[%clk 0:00:38]} 50. Ba5+ {[%clk 0:00:09]}  Bb6 {[%clk 0:00:38]} 51. Bb4 {[%clk 0:00:09]}  Kd7 {[%clk 0:00:33]} 52. Bxe7 {[%clk 0:00:08]}  Kxe7 {[%clk 0:00:33]} 53. Kf5 {[%clk 0:00:09]}  Kf7 {[%clk 0:00:33]} 54. Bd5+ {[%clk 0:00:09]}  Kg7 {[%clk 0:00:33]} 55. Ke6 {[%clk 0:00:10]}  Bf2 {[%clk 0:00:33]} 56. g4 {[%clk 0:00:10]}  Bb6 {[%clk 0:00:33]} 57. Kd7 {[%clk 0:00:10]}  Be3 {[%clk 0:00:33]} 58. Be6 {[%clk 0:00:10]}  Bf2 {[%clk 0:00:34]} 59. Bf5 {[%clk 0:00:11]}  Be3 {[%clk 0:00:34]} 60. Ke6 {[%clk 0:00:11]}  Bf2 {[%clk 0:00:35]} 61. Kd7 {[%clk 0:00:12]}  Be3 {[%clk 0:00:35]} 62. Kc6 {[%clk 0:00:13]}  Bf2 {[%clk 0:00:36]} 63. Kb7 {[%clk 0:00:14]}  Be3 {[%clk 0:00:36]} 64. Kc6 {[%clk 0:00:14]}  Bf2 {[%clk 0:00:36]} 65. Kb7 {[%clk 0:00:15]}  Be3 {[%clk 0:00:36]} 66. Kc6 {[%clk 0:00:16]} 1/2-1/2


[Site "https://www.chess.com"]

[Event "Titled Tuesday Blitz June 20 Early 2023"]
[White "Nikulina, Alena"]
[Black "Thiel, Thomas"]
[WhiteFideId "4172051"]
[BlackFideId "4615964"]
[WhiteElo "1608"]
[BlackElo "2214"]
[Result "1-0"]
[Round "10"]
[TimeControl "180+2"]
[Date "2023.06.20"]
[WhiteClock "0:00:05"]
[BlackClock "0:00:00"]
[Board "152"]

1. e4 {[%clk 0:02:59]}  d5 {[%clk 0:02:59]} 2. exd5 {[%clk 0:02:55]}  Nf6 {[%clk 0:02:57]} 3. d4 {[%clk 0:02:50]}  Nxd5 {[%clk 0:02:55]} 4. Nf3 {[%clk 0:02:49]}  g6 {[%clk 0:02:55]} 5. c4 {[%clk 0:02:47]}  Nb6 {[%clk 0:02:54]} 6. Nc3 {[%clk 0:02:48]}  Bg7 {[%clk 0:02:53]} 7. Be3 {[%clk 0:02:48]}  O-O {[%clk 0:02:51]} 8. Be2 {[%clk 0:02:48]}  Bg4 {[%clk 0:02:50]} 9. b3 {[%clk 0:02:46]}  Nc6 {[%clk 0:02:33]} 10. Rc1 {[%clk 0:02:33]}  Bxf3 {[%clk 0:02:31]} 11. Bxf3 {[%clk 0:02:32]}  Nxd4 {[%clk 0:02:30]} 12. Bxb7 {[%clk 0:02:30]}  Rb8 {[%clk 0:02:30]} 13. Bf3 {[%clk 0:02:23]}  c5 {[%clk 0:02:29]} 14. O-O {[%clk 0:02:22]}  e5 {[%clk 0:02:25]} 15. Nd5 {[%clk 0:02:22]}  Nxf3+ {[%clk 0:02:23]} 16. Qxf3 {[%clk 0:02:21]}  Rc8 {[%clk 0:02:10]} 17. Rcd1 {[%clk 0:02:20]}  f5 {[%clk 0:01:45]} 18. Qe2 {[%clk 0:01:38]}  Nxd5 {[%clk 0:01:34]} 19. Rxd5 {[%clk 0:01:37]}  Qe7 {[%clk 0:01:34]} 20. Rfd1 {[%clk 0:01:35]}  f4 {[%clk 0:01:11]} 21. Rd7 {[%clk 0:01:25]}  Qg5 {[%clk 0:01:03]} 22. Bc1 {[%clk 0:00:56]}  a6 {[%clk 0:00:56]} 23. f3 {[%clk 0:00:51]}  Rcd8 {[%clk 0:00:53]} 24. Ba3 {[%clk 0:00:40]}  Rxd7 {[%clk 0:00:52]} 25. Rxd7 {[%clk 0:00:40]}  Qf5 {[%clk 0:00:49]} 26. Qd2 {[%clk 0:00:30]}  e4 {[%clk 0:00:46]} 27. fxe4 {[%clk 0:00:29]}  Qxe4 {[%clk 0:00:45]} 28. Bxc5 {[%clk 0:00:23]}  Re8 {[%clk 0:00:27]} 29. Qd5+ {[%clk 0:00:19]}  Qxd5 {[%clk 0:00:26]} 30. Rxd5 {[%clk 0:00:17]}  Re2 {[%clk 0:00:25]} 31. a4 {[%clk 0:00:15]}  Bf6 {[%clk 0:00:20]} 32. Kf1 {[%clk 0:00:15]}  Rb2 {[%clk 0:00:17]} 33. b4 {[%clk 0:00:14]}  Bc3 {[%clk 0:00:15]} 34. b5 {[%clk 0:00:14]}  axb5 {[%clk 0:00:13]} 35. axb5 {[%clk 0:00:13]}  Kf7 {[%clk 0:00:11]} 36. Rd7+ {[%clk 0:00:13]}  Ke6 {[%clk 0:00:10]} 37. Re7+ {[%clk 0:00:13]}  Kf5 {[%clk 0:00:09]} 38. Rxh7 {[%clk 0:00:13]}  Ke4 {[%clk 0:00:07]} 39. Re7+ {[%clk 0:00:13]}  Kd3 {[%clk 0:00:07]} 40. b6 {[%clk 0:00:11]}  Kxc4 {[%clk 0:00:00]} 41. Bd6 {[%clk 0:00:05]} 1-0


[Site "https://www.chess.com"]

[Event "Titled Tuesday Blitz June 20 Early 2023"]
[White "Alberto, Manuel"]
[Black "Dzhaparov, Medet"]
[WhiteFideId "10100148"]
[BlackFideId "13803689"]
[WhiteElo "2166"]
[BlackElo "1690"]
[Result "1-0"]
[Round "10"]
[TimeControl "180+2"]
[Date "2023.06.20"]
[WhiteClock "0:01:52"]
[BlackClock "0:01:23"]
[Board "155"]

1. e4 {[%clk 0:02:54]}  c5 {[%clk 0:02:38]} 2. Nf3 {[%clk 0:02:35]}  d6 {[%clk 0:02:38]} 3. d4 {[%clk 0:02:33]}  cxd4 {[%clk 0:02:39]} 4. Qxd4 {[%clk 0:02:33]}  Nc6 {[%clk 0:02:38]} 5. Bb5 {[%clk 0:02:31]}  Bd7 {[%clk 0:02:38]} 6. Bxc6 {[%clk 0:02:22]}  Bxc6 {[%clk 0:02:39]} 7. Nc3 {[%clk 0:02:21]}  Nf6 {[%clk 0:02:39]} 8. Bg5 {[%clk 0:02:16]}  h6 {[%clk 0:02:37]} 9. Bxf6 {[%clk 0:02:15]}  gxf6 {[%clk 0:02:37]} 10. O-O-O {[%clk 0:02:14]}  a5 {[%clk 0:02:36]} 11. a3 {[%clk 0:02:12]}  b5 {[%clk 0:02:36]} 12. Nd5 {[%clk 0:02:08]}  Rb8 {[%clk 0:02:24]} 13. Qc3 {[%clk 0:02:06]}  Bxd5 {[%clk 0:02:15]} 14. exd5 {[%clk 0:02:04]}  b4 {[%clk 0:02:09]} 15. axb4 {[%clk 0:02:03]}  axb4 {[%clk 0:02:10]} 16. Qc6+ {[%clk 0:02:02]}  Qd7 {[%clk 0:02:11]} 17. Nd4 {[%clk 0:02:01]}  h5 {[%clk 0:02:04]} 18. Rhe1 {[%clk 0:02:00]}  Bh6+ {[%clk 0:01:52]} 19. Kb1 {[%clk 0:01:59]}  Rg8 {[%clk 0:01:50]} 20. Nf5 {[%clk 0:01:56]}  Bf4 {[%clk 0:01:48]} 21. g3 {[%clk 0:01:55]}  Be5 {[%clk 0:01:45]} 22. f4 {[%clk 0:01:54]}  Bxb2 {[%clk 0:01:23]} 23. Rxe7+ {[%clk 0:01:52]} 1-0


[Site "https://www.chess.com"]

[Event "Titled Tuesday Blitz June 20 Early 2023"]
[White "Better_Chess_Faster"]
[Black "Maluco_do_Natal_00"]
[WhiteElo "2000"]
[BlackElo "2092"]
[Result "1-0"]
[Round "10"]
[TimeControl "180+2"]
[Date "2023.06.20"]
[WhiteClock "0:00:17"]
[BlackClock "0:00:00"]
[Board "156"]

1. e4 {[%clk 0:03:00]}  c5 {[%clk 0:02:56]} 2. Nf3 {[%clk 0:03:00]}  Nc6 {[%clk 0:02:56]} 3. d4 {[%clk 0:03:00]}  cxd4 {[%clk 0:02:56]} 4. Nxd4 {[%clk 0:03:00]}  Nf6 {[%clk 0:02:57]} 5. Nc3 {[%clk 0:03:00]}  e5 {[%clk 0:02:57]} 6. Ndb5 {[%clk 0:03:00]}  d6 {[%clk 0:02:58]} 7. Bg5 {[%clk 0:02:58]}  a6 {[%clk 0:02:58]} 8. Bxf6 {[%clk 0:02:56]}  gxf6 {[%clk 0:02:58]} 9. Na3 {[%clk 0:02:56]}  b5 {[%clk 0:02:59]} 10. Nd5 {[%clk 0:02:56]}  Bg7 {[%clk 0:02:59]} 11. Bd3 {[%clk 0:02:55]}  Be6 {[%clk 0:02:58]} 12. Nxb5 {[%clk 0:02:42]}  axb5 {[%clk 0:02:54]} 13. Bxb5 {[%clk 0:02:42]}  Bd7 {[%clk 0:02:54]} 14. O-O {[%clk 0:02:36]}  O-O {[%clk 0:02:47]} 15. c3 {[%clk 0:02:32]}  Rb8 {[%clk 0:02:10]} 16. a4 {[%clk 0:02:31]}  Ne7 {[%clk 0:02:10]} 17. c4 {[%clk 0:02:15]}  Nxd5 {[%clk 0:02:06]} 18. Qxd5 {[%clk 0:02:13]}  Be6 {[%clk 0:02:06]} 19. Qd3 {[%clk 0:02:10]}  Qc7 {[%clk 0:01:59]} 20. Rfd1 {[%clk 0:02:09]}  Rfd8 {[%clk 0:01:43]} 21. b4 {[%clk 0:02:05]}  Qc8 {[%clk 0:01:15]} 22. a5 {[%clk 0:01:58]}  f5 {[%clk 0:01:14]} 23. f3 {[%clk 0:01:53]}  fxe4 {[%clk 0:01:13]} 24. fxe4 {[%clk 0:01:51]}  Bd7 {[%clk 0:01:08]} 25. Bxd7 {[%clk 0:01:45]}  Rxd7 {[%clk 0:01:07]} 26. b5 {[%clk 0:01:38]}  Qc5+ {[%clk 0:01:06]} 27. Kh1 {[%clk 0:01:35]}  Rc7 {[%clk 0:01:02]} 28. Ra4 {[%clk 0:01:31]}  Bf8 {[%clk 0:00:46]} 29. h3 {[%clk 0:01:30]}  Ra7 {[%clk 0:00:33]} 30. Qd5 {[%clk 0:01:13]}  Qc8 {[%clk 0:00:05]} 31. a6 {[%clk 0:01:08]}  Rb6 {[%clk 0:00:02]} 32. Rc1 {[%clk 0:00:57]}  Qc7 {[%clk 0:00:01]} 33. Ra2 {[%clk 0:00:52]}  Qc5 {[%clk 0:00:02]} 34. Rd2 {[%clk 0:00:50]}  Rxb5 {[%clk 0:00:02]} 35. cxb5 {[%clk 0:00:43]}  Qxc1+ {[%clk 0:00:01]} 36. Kh2 {[%clk 0:00:43]}  Qc7 {[%clk 0:00:01]} 37. Qd3 {[%clk 0:00:32]}  Qb6 {[%clk 0:00:02]} 38. Rc2 {[%clk 0:00:29]}  d5 {[%clk 0:00:02]} 39. Qxd5 {[%clk 0:00:19]}  Bd6 {[%clk 0:00:01]} 40. Rc6 {[%clk 0:00:18]}  Qd8 {[%clk 0:00:00]} 41. Rxd6 {[%clk 0:00:17]} 1-0


[Site "https://www.chess.com"]

[Event "Titled Tuesday Blitz June 20 Early 2023"]
[White "Pranav, V"]
[Black "Kamsky, Gata"]
[WhiteFideId "25060783"]
[BlackFideId "2000024"]
[WhiteElo "2533"]
[BlackElo "2660"]
[Result "1/2-1/2"]
[Round "11"]
[TimeControl "180+2"]
[Date "2023.06.20"]
[WhiteClock "0:00:03"]
[BlackClock "0:00:04"]
[Board "1"]

1. e4 {[%clk 0:03:00]}  c5 {[%clk 0:02:58]} 2. Nf3 {[%clk 0:03:01]}  e6 {[%clk 0:02:53]} 3. d4 {[%clk 0:03:00]}  cxd4 {[%clk 0:02:52]} 4. Nxd4 {[%clk 0:03:01]}  Nc6 {[%clk 0:02:52]} 5. Nc3 {[%clk 0:03:01]}  Qc7 {[%clk 0:02:52]} 6. Be2 {[%clk 0:03:01]}  Nf6 {[%clk 0:02:50]} 7. O-O {[%clk 0:03:01]}  a6 {[%clk 0:02:49]} 8. Be3 {[%clk 0:02:59]}  Bb4 {[%clk 0:02:47]} 9. Na4 {[%clk 0:02:58]}  Be7 {[%clk 0:02:43]} 10. c4 {[%clk 0:02:50]}  d6 {[%clk 0:02:25]} 11. Nc3 {[%clk 0:02:45]}  O-O {[%clk 0:02:24]} 12. Rc1 {[%clk 0:02:45]}  Ne5 {[%clk 0:02:22]} 13. b3 {[%clk 0:02:35]}  b6 {[%clk 0:02:19]} 14. f4 {[%clk 0:02:34]}  Ned7 {[%clk 0:02:18]} 15. Bf3 {[%clk 0:02:25]}  Bb7 {[%clk 0:02:17]} 16. g4 {[%clk 0:02:21]}  Nc5 {[%clk 0:02:11]} 17. Qc2 {[%clk 0:02:20]}  e5 {[%clk 0:02:09]} 18. fxe5 {[%clk 0:02:10]}  dxe5 {[%clk 0:02:08]} 19. Nf5 {[%clk 0:02:10]}  g6 {[%clk 0:01:53]} 20. Nh6+ {[%clk 0:01:44]}  Kg7 {[%clk 0:01:51]} 21. g5 {[%clk 0:01:45]}  Ng8 {[%clk 0:01:45]} 22. Nd5 {[%clk 0:01:40]}  Bxd5 {[%clk 0:01:43]} 23. cxd5 {[%clk 0:01:41]}  a5 {[%clk 0:01:42]} 24. a3 {[%clk 0:01:36]}  Qd8 {[%clk 0:01:41]} 25. Nxg8 {[%clk 0:01:28]}  Kxg8 {[%clk 0:01:40]} 26. h4 {[%clk 0:01:28]}  h6 {[%clk 0:01:36]} 27. gxh6 {[%clk 0:01:13]}  Bxh4 {[%clk 0:01:33]} 28. Qh2 {[%clk 0:01:14]}  Kh7 {[%clk 0:01:28]} 29. Qxe5 {[%clk 0:00:44]}  Bf6 {[%clk 0:01:27]} 30. Qg3 {[%clk 0:00:43]}  Re8 {[%clk 0:00:55]} 31. Bg2 {[%clk 0:00:28]}  Ra7 {[%clk 0:00:53]} 32. Rc4 {[%clk 0:00:25]}  Be5 {[%clk 0:00:51]} 33. Qh3 {[%clk 0:00:24]}  Nxb3 {[%clk 0:00:42]} 34. Qf3 {[%clk 0:00:20]}  Nc5 {[%clk 0:00:38]} 35. Rb1 {[%clk 0:00:16]}  Qd6 {[%clk 0:00:36]} 36. Rc2 {[%clk 0:00:11]}  Rc7 {[%clk 0:00:36]} 37. Rf1 {[%clk 0:00:11]}  f6 {[%clk 0:00:34]} 38. Rfc1 {[%clk 0:00:10]}  Qd7 {[%clk 0:00:30]} 39. Bh3 {[%clk 0:00:09]}  Qa4 {[%clk 0:00:27]} 40. Bxc5 {[%clk 0:00:08]}  bxc5 {[%clk 0:00:27]} 41. Rc4 {[%clk 0:00:08]}  Qb5 {[%clk 0:00:25]} 42. a4 {[%clk 0:00:08]}  Qb2 {[%clk 0:00:24]} 43. R1c2 {[%clk 0:00:08]}  Qa1+ {[%clk 0:00:23]} 44. Rc1 {[%clk 0:00:08]}  Qb2 {[%clk 0:00:23]} 45. R1c2 {[%clk 0:00:08]}  Qb8 {[%clk 0:00:19]} 46. Bf1 {[%clk 0:00:08]}  Rb7 {[%clk 0:00:19]} 47. Kg2 {[%clk 0:00:06]}  Rb2 {[%clk 0:00:18]} 48. Rxc5 {[%clk 0:00:07]}  Rxc2+ {[%clk 0:00:18]} 49. Rxc2 {[%clk 0:00:07]}  Kxh6 {[%clk 0:00:17]} 50. Bb5 {[%clk 0:00:07]}  Rh8 {[%clk 0:00:16]} 51. Rc6 {[%clk 0:00:04]}  Kg5 {[%clk 0:00:14]} 52. Qe3+ {[%clk 0:00:04]}  Bf4 {[%clk 0:00:14]} 53. Qb6 {[%clk 0:00:04]}  Rh2+ {[%clk 0:00:13]} 54. Kg1 {[%clk 0:00:05]}  Qe5 {[%clk 0:00:13]} 55. Bf1 {[%clk 0:00:02]}  Rb2 {[%clk 0:00:07]} 56. Qc5 {[%clk 0:00:02]}  Bh2+ {[%clk 0:00:06]} 57. Kh1 {[%clk 0:00:02]}  Bf4 {[%clk 0:00:04]} 58. Qg1+ {[%clk 0:00:02]}  Bg3 {[%clk 0:00:04]} 59. Qe3+ {[%clk 0:00:02]}  Bf4 {[%clk 0:00:03]} 60. Qg1+ {[%clk 0:00:03]}  Bg3 {[%clk 0:00:04]} 61. Qe3+ {[%clk 0:00:03]}  Bf4 {[%clk 0:00:04]} 62. Qg1+ {[%clk 0:00:03]} 1/2-1/2


[Site "https://www.chess.com"]

[Event "Titled Tuesday Blitz June 20 Early 2023"]
[White "Vachier-Lagrave, Maxime"]
[Black "Grischuk, Alexander"]
[WhiteFideId "623539"]
[BlackFideId "4126025"]
[WhiteElo "2739"]
[BlackElo "2721"]
[Result "1-0"]
[Round "11"]
[TimeControl "180+2"]
[Date "2023.06.20"]
[WhiteClock "0:01:28"]
[BlackClock "0:00:06"]
[Board "2"]

1. e4 {[%clk 0:03:00]}  e6 {[%clk 0:02:59]} 2. d4 {[%clk 0:02:59]}  d5 {[%clk 0:03:00]} 3. Nc3 {[%clk 0:02:55]}  Nf6 {[%clk 0:02:59]} 4. Bg5 {[%clk 0:02:51]}  dxe4 {[%clk 0:02:58]} 5. Nxe4 {[%clk 0:02:51]}  Be7 {[%clk 0:02:59]} 6. Bxf6 {[%clk 0:02:52]}  gxf6 {[%clk 0:02:59]} 7. Nf3 {[%clk 0:02:52]}  f5 {[%clk 0:02:59]} 8. Nc3 {[%clk 0:02:52]}  a6 {[%clk 0:02:57]} 9. Qd2 {[%clk 0:02:48]}  b5 {[%clk 0:02:56]} 10. O-O-O {[%clk 0:02:49]}  Bb7 {[%clk 0:02:48]} 11. Qe3 {[%clk 0:02:48]}  b4 {[%clk 0:02:46]} 12. Na4 {[%clk 0:02:45]}  Bd5 {[%clk 0:02:34]} 13. Kb1 {[%clk 0:02:25]}  Nd7 {[%clk 0:02:31]} 14. Be2 {[%clk 0:02:22]}  c6 {[%clk 0:02:28]} 15. Rhe1 {[%clk 0:02:20]}  Qa5 {[%clk 0:02:13]} 16. b3 {[%clk 0:02:20]}  Nb6 {[%clk 0:02:02]} 17. Nxb6 {[%clk 0:02:16]}  Qxb6 {[%clk 0:02:03]} 18. Ne5 {[%clk 0:02:14]}  Rf8 {[%clk 0:01:35]} 19. g4 {[%clk 0:01:59]}  fxg4 {[%clk 0:00:54]} 20. Bxg4 {[%clk 0:02:00]}  O-O-O {[%clk 0:00:51]} 21. Qh3 {[%clk 0:01:58]}  f5 {[%clk 0:00:49]} 22. Bf3 {[%clk 0:01:52]}  Bf6 {[%clk 0:00:40]} 23. Bxd5 {[%clk 0:01:52]}  cxd5 {[%clk 0:00:40]} 24. Qxh7 {[%clk 0:01:43]}  Qc7 {[%clk 0:00:39]} 25. Qh6 {[%clk 0:01:38]}  Qg7 {[%clk 0:00:35]} 26. Qd2 {[%clk 0:01:37]}  a5 {[%clk 0:00:33]} 27. c3 {[%clk 0:01:36]}  Bxe5 {[%clk 0:00:08]} 28. Rxe5 {[%clk 0:01:35]}  bxc3 {[%clk 0:00:09]} 29. Qxc3+ {[%clk 0:01:35]}  Kd7 {[%clk 0:00:10]} 30. Qxa5 {[%clk 0:01:30]}  Rc8 {[%clk 0:00:10]} 31. Qb5+ {[%clk 0:01:29]}  Rc6 {[%clk 0:00:06]} 32. Rxe6 {[%clk 0:01:28]} 1-0


[Site "https://www.chess.com"]